[Event "Hungarian Rapid-ch 2022"]
[Site "Ajka"]
[Date "2022.07.15"]
[Round "4.18"]
[White "Gelle, Istvan"]
[Black "Tolnai, Tibor"]
[Result "1-0"]
[ECO "A40"]
[WhiteElo "2218"]
[BlackElo "2433"]
[Annotator "ChessBase"]
[PlyCount "59"]
[EventDate "2022.07.15"]
[EventType "swiss"]
[EventCountry "HUN"]
[SourceTitle "playchess.com"]
[Source "ChessBase"]
[SourceQuality "1"]
[TimeControl "900+10"]

1. d4 {[%emt 0:00:12]} e6 {[%emt 0:00:13]} 2. Bf4 {[%emt 0:00:02]} d5 {[%emt 0:00:13]} 3. e3 {[%emt 0:00:02]} Bd6 {[%emt 0:00:05]} 4. Bg3 {[%emt 0:00:02]} Ne7 {[%emt 0:00:14]} 5. Nf3 {[%emt 0:00:03]} O-O {[%emt 0:00:02]} 6. Bd3 {[%emt 0:00:08]} f5 {[%emt 0:00:05]} 7. O-O {[%emt 0:00:36]} Ng6 {[%emt 0:00:07]} 8. c4 {[%emt 0:00:10]} c6 {[%emt 0:00:02]} 9. Nc3 {[%emt 0:00:02]} Bxg3 {[%emt 0:00:04]} 10. hxg3 {[%emt 0:00:01]} Nd7 {[%emt 0:00:03]} 11. Qc2 {[%emt 0:00:27]} Nf6 {[%emt 0:00:06]} 12. cxd5 {[%emt 0:00:44]} cxd5 {[%emt 0:00:07]} 13. Rac1 {[%emt 0:00:14]} Ne4 {[%emt 0:00:18]} 14. Ne2 {[%emt 0:00:41]} Bd7 {[%emt 0:00:23]} 15. Qb3 {[%emt 0:01:05]} Bc6 {[%emt 0:00:21]} 16. Qa3 {[%emt 0:01:04]} h6 {[%emt 0:01:46]} 17. Rc2 {[%emt 0:00:23]} Ng5 {[%emt 0:00:19]} 18. Ne5 {[%emt 0:01:35]} Nxe5 {[%emt 0:00:47]} 19. dxe5 {[%emt 0:00:02]} Nf7 {[%emt 0:02:43]} 20. f4 {[%emt 0:00:06]} g5 {[%emt 0:00:19]} 21. Nd4 {[%emt 0:00:06]} Bd7 {[%emt 0:00:32]} 22. Bxf5 {[%emt 0:00:44]} exf5 {[%emt 0:00:16]} 23. e6 {[%emt 0:00:01]} Qf6 {[%emt 0:03:13]} 24. exd7 {[%emt 0:00:12]} gxf4 {[%emt 0:00:10]} 25. Rxf4 {[%emt 0:00:13]} Nd6 {[%emt 0:00:35]} 26. Rcf2 {[%emt 0:00:41]} Qe5 {[%emt 0:03:54]} 27. Qd3 {[%emt 0:01:49]} Ne4 {[%emt 0:01:11]} 28. R2f3 {[%emt 0:00:20]} Rad8 {[%emt 0:01:24]} 29. Nxf5 {[%emt 0:00:31]} Rf6 {[%emt 0:00:07]} 30. Nxh6+ {[%emt 0:00:59]} 1-0

[Event "Hungarian Rapid-ch 2022"]
[Site "Ajka"]
[Date "2022.07.15"]
[Round "4.19"]
[White "Emodi, Barnabas"]
[Black "Gaal, Zsoka"]
[Result "1-0"]
[ECO "D05"]
[WhiteElo "2341"]
[BlackElo "2313"]
[Annotator "ChessBase"]
[PlyCount "95"]
[EventDate "2022.07.15"]
[EventType "swiss"]
[EventCountry "HUN"]
[SourceTitle "playchess.com"]
[Source "ChessBase"]
[SourceQuality "1"]
[TimeControl "900+10"]

1. d4 {[%emt 0:00:12]} Nf6 {[%emt 0:00:17]} 2. Nf3 {[%emt 0:00:02]} d5 {[%emt 0:00:02]} 3. e3 {[%emt 0:00:07]} e6 {[%emt 0:01:06]} 4. c4 {[%emt 0:00:16]} a6 {[%emt 0:00:33]} 5. b3 {[%emt 0:00:50]} Be7 {[%emt 0:00:50]} 6. Bd3 {[%emt 0:00:20]} O-O {[%emt 0:00:15]} 7. O-O {[%emt 0:00:14]} dxc4 {[%emt 0:00:15]} 8. bxc4 {[%emt 0:00:09]} c5 {[%emt 0:00:03]} 9. Bb2 {[%emt 0:00:53]} Nc6 {[%emt 0:00:14]} 10. Nbd2 {[%emt 0:00:39]} b6 {[%emt 0:00:41]} 11. Qe2 {[%emt 0:01:09]} Bb7 {[%emt 0:00:11]} 12. Rad1 {[%emt 0:00:25]} Qc7 {[%emt 0:01:22]} 13. Ne5 {[%emt 0:01:09]} Rfd8 {[%emt 0:03:00]} 14. Ndf3 {[%emt 0:01:01]} h6 {[%emt 0:00:55]} 15. h3 {[%emt 0:02:27]} Rac8 {[%emt 0:00:06]} 16. Rfe1 {[%emt 0:01:18]} Ba8 {[%emt 0:02:29]} 17. Nxc6 {[%emt 0:01:47]} Qxc6 {[%emt 0:00:28]} 18. d5 {[%emt 0:02:02]} exd5 {[%emt 0:00:33]} 19. cxd5 {[%emt 0:00:16]} Rxd5 {[%emt 0:01:07]} 20. Bxa6 {[%emt 0:00:23]} Rcd8 {[%emt 0:00:15]} 21. Bc4 {[%emt 0:00:10]} Rxd1 {[%emt 0:00:16]} 22. Bxf7+ {[%emt 0:00:10]} Kf8 {[%emt 0:00:45]} 23. Rxd1 {[%emt 0:00:02]} Rxd1+ {[%emt 0:01:39]} 24. Qxd1 {[%emt 0:00:01]} Qb5 {[%emt 0:00:21]} 25. Bb3 {[%emt 0:00:38]} c4 {[%emt 0:00:21]} 26. Bxf6 {[%emt 0:00:09]} gxf6 {[%emt 0:00:19]} 27. Bc2 {[%emt 0:00:24]} Qd5 {[%emt 0:00:10]} 28. Qxd5 {[%emt 0:00:46]} Bxd5 {[%emt 0:00:01]} 29. Nd4 {[%emt 0:00:03]} Bc5 {[%emt 0:00:10]} 30. Kf1 {[%emt 0:00:03]} c3 {[%emt 0:00:39]} 31. a4 {[%emt 0:00:08]} Bc4+ {[%emt 0:00:15]} 32. Ke1 {[%emt 0:00:08]} Bxd4 {[%emt 0:00:27]} 33. exd4 {[%emt 0:00:02]} Kf7 {[%emt 0:00:01]} 34. Kd1 {[%emt 0:00:11]} Ke6 {[%emt 0:00:02]} 35. Be4 {[%emt 0:00:02]} f5 {[%emt 0:00:18]} 36. Bc2 {[%emt 0:00:32]} f4 {[%emt 0:00:11]} 37. Be4 {[%emt 0:00:09]} Bb3+ {[%emt 0:00:01]} 38. Ke2 {[%emt 0:00:01]} Bc4+ {[%emt 0:00:33]} 39. Kd1 {[%emt 0:00:16]} Bb3+ {[%emt 0:00:00]} 40. Ke2 {[%emt 0:00:44]} Bxa4 {[%emt 0:00:02]} 41. Kd3 {[%emt 0:00:02]} c2 {[%emt 0:00:04]} 42. Kd2 {[%emt 0:00:01]} h5 {[%emt 0:00:05]} 43. g3 {[%emt 0:00:08]} fxg3 {[%emt 0:00:26]} 44. fxg3 {[%emt 0:00:01]} b5 {[%emt 0:00:12]} 45. Bxc2 {[%emt 0:00:15]} Kd5 {[%emt 0:00:03]} 46. Bxa4 {[%emt 0:00:27]} bxa4 {[%emt 0:00:01]} 47. Kc3 {[%emt 0:00:01]} a3 {[%emt 0:00:18]} 48. h4 1-0

[Event "Hungarian Rapid-ch 2022"]
[Site "Ajka"]
[Date "2022.07.15"]
[Round "4.20"]
[White "Krstulovic, Alex"]
[Black "Tubak, Daniel"]
[Result "1-0"]
[ECO "D37"]
[WhiteElo "2413"]
[BlackElo "2182"]
[Annotator "ChessBase"]
[PlyCount "81"]
[EventDate "2022.07.15"]
[EventType "swiss"]
[EventCountry "HUN"]
[SourceTitle "playchess.com"]
[Source "ChessBase"]
[SourceQuality "1"]
[TimeControl "900+10"]

1. d4 {[%emt 0:00:15]} Nf6 {[%emt 0:00:13]} 2. c4 {[%emt 0:00:01]} e6 {[%emt 0:00:01]} 3. Nf3 {[%emt 0:00:02]} d5 {[%emt 0:00:01]} 4. Nc3 {[%emt 0:00:02]} dxc4 {[%emt 0:00:03]} 5. e4 {[%emt 0:00:01]} Bb4 {[%emt 0:00:03]} 6. Bxc4 {[%emt 0:00:02]} Nxe4 {[%emt 0:00:04]} 7. O-O {[%emt 0:00:03]} Nxc3 {[%emt 0:00:18]} 8. bxc3 {[%emt 0:00:02]} Be7 {[%emt 0:00:06]} 9. Ne5 {[%emt 0:00:31]} O-O {[%emt 0:00:14]} 10. Re1 {[%emt 0:00:30]} Nd7 {[%emt 0:01:58]} 11. Nxf7 {[%emt 0:01:54]} Rxf7 {[%emt 0:00:01]} 12. Bxe6 {[%emt 0:00:01]} Nf6 {[%emt 0:00:49]} 13. Bxf7+ {[%emt 0:00:14]} Kxf7 {[%emt 0:00:02]} 14. Bg5 {[%emt 0:00:06]} Kg8 {[%emt 0:01:59]} 15. Qb3+ {[%emt 0:01:27]} Kf8 {[%emt 0:00:29]} 16. Re3 {[%emt 0:02:10]} Bd6 {[%emt 0:04:51]} 17. Rae1 {[%emt 0:00:17]} Bd7 {[%emt 0:00:17]} 18. Qxb7 {[%emt 0:00:13]} Rb8 {[%emt 0:00:51]} 19. Bxf6 {[%emt 0:00:19]} gxf6 {[%emt 0:00:05]} 20. Qxa7 {[%emt 0:00:13]} Rb2 {[%emt 0:00:17]} 21. d5 {[%emt 0:00:45]} Kf7 {[%emt 0:00:18]} 22. c4 {[%emt 0:00:30]} Qb8 {[%emt 0:00:19]} 23. Qd4 {[%emt 0:00:27]} Rb4 {[%emt 0:00:38]} 24. Qh4 {[%emt 0:00:26]} Qg8 {[%emt 0:00:05]} 25. Qh5+ {[%emt 0:00:44]} Qg6 {[%emt 0:00:01]} 26. Qe2 {[%emt 0:00:01]} Kg8 {[%emt 0:00:44]} 27. Rb3 {[%emt 0:03:15]} Qh6 {[%emt 0:01:12]} 28. g3 {[%emt 0:00:56]} Ra4 {[%emt 0:01:19]} 29. Rb8+ {[%emt 0:00:45]} Kf7 {[%emt 0:00:04]} 30. Rd8 {[%emt 0:00:48]} Qh3 {[%emt 0:00:20]} 31. c5 {[%emt 0:00:31]} Bxc5 {[%emt 0:01:49]} 32. Qc2 {[%emt 0:00:01]} Rh4 {[%emt 0:00:28]} 33. Rxd7+ {[%emt 0:00:21]} Qxd7 {[%emt 0:00:01]} 34. Qxc5 {[%emt 0:00:40]} Ra4 {[%emt 0:00:09]} 35. Qc2 {[%emt 0:00:05]} Kg8 {[%emt 0:00:12]} 36. Re7 {[%emt 0:00:17]} Qxe7 {[%emt 0:00:17]} 37. Qxa4 {[%emt 0:00:01]} Qe5 {[%emt 0:00:20]} 38. Qg4+ {[%emt 0:00:45]} Kf8 {[%emt 0:00:08]} 39. Qc8+ {[%emt 0:00:02]} Kg7 {[%emt 0:00:15]} 40. Qd7+ {[%emt 0:00:25]} Kh8 {[%emt 0:00:13]} 41. Qe6 {[%emt 0:00:07]} 1-0

[Event "Hungarian Rapid-ch 2022"]
[Site "Ajka"]
[Date "2022.07.15"]
[Round "4.21"]
[White "Papp, Bence"]
[Black "Lazarne Vajda, Szidonia"]
[Result "0-1"]
[ECO "D16"]
[WhiteElo "2244"]
[BlackElo "2313"]
[Annotator "ChessBase"]
[PlyCount "138"]
[EventDate "2022.07.15"]
[EventType "swiss"]
[EventCountry "HUN"]
[SourceTitle "playchess.com"]
[Source "ChessBase"]
[SourceQuality "1"]
[TimeControl "900+10"]

1. d4 {[%emt 0:00:12]} d5 {[%emt 0:00:29]} 2. c4 {[%emt 0:00:05]} c6 {[%emt 0:00:07]} 3. Nc3 {[%emt 0:00:09]} Nf6 {[%emt 0:00:12]} 4. Nf3 {[%emt 0:00:04]} dxc4 {[%emt 0:00:20]} 5. a4 {[%emt 0:00:07]} e6 {[%emt 0:00:19]} 6. e3 {[%emt 0:00:36]} c5 {[%emt 0:00:49]} 7. Bxc4 {[%emt 0:00:11]} cxd4 {[%emt 0:00:21]} 8. exd4 {[%emt 0:00:22]} Be7 {[%emt 0:00:13]} 9. O-O {[%emt 0:00:03]} Nc6 {[%emt 0:00:11]} 10. Be3 {[%emt 0:00:48]} O-O {[%emt 0:00:17]} 11. Qe2 {[%emt 0:01:28]} Nb4 {[%emt 0:00:36]} 12. Ne5 {[%emt 0:01:28]} Bd7 {[%emt 0:00:20]} 13. a5 {[%emt 0:00:33]} a6 {[%emt 0:01:58]} 14. Bg5 {[%emt 0:00:18]} Rc8 {[%emt 0:01:24]} 15. Bb3 {[%emt 0:00:07]} Be8 {[%emt 0:00:29]} 16. Rfd1 {[%emt 0:00:07]} Bc6 {[%emt 0:00:47]} 17. Na4 {[%emt 0:04:06]} Bxa4 {[%emt 0:02:14]} 18. Rxa4 {[%emt 0:00:01]} Nfd5 {[%emt 0:00:10]} 19. Bd2 {[%emt 0:00:38]} Nc6 {[%emt 0:00:27]} 20. Rc4 {[%emt 0:00:50]} Ncb4 {[%emt 0:02:44]} 21. Rxc8 {[%emt 0:03:03]} Qxc8 {[%emt 0:00:01]} 22. Qf3 {[%emt 0:00:24]} Qd8 {[%emt 0:00:57]} 23. Ra1 {[%emt 0:00:24]} Bd6 {[%emt 0:00:20]} 24. Ra4 {[%emt 0:00:16]} Bxe5 {[%emt 0:00:34]} 25. dxe5 {[%emt 0:00:01]} Nc6 {[%emt 0:00:02]} 26. Qg3 {[%emt 0:00:22]} Kh8 {[%emt 0:01:11]} 27. Rg4 {[%emt 0:00:44]} Nde7 {[%emt 0:00:41]} 28. Bg5 {[%emt 0:00:44]} Qxa5 {[%emt 0:00:08]} 29. h3 {[%emt 0:00:16]} Nf5 {[%emt 0:00:01]} 30. Qf4 {[%emt 0:00:28]} Qxe5 {[%emt 0:00:09]} 31. Qd2 {[%emt 0:00:38]} Ncd4 {[%emt 0:00:13]} 32. Bd1 {[%emt 0:00:07]} f6 {[%emt 0:00:28]} 33. Bf4 {[%emt 0:00:02]} Qd5 {[%emt 0:00:01]} 34. Qb4 {[%emt 0:00:28]} Rd8 {[%emt 0:00:08]} 35. Kh2 {[%emt 0:00:22]} Nc6 {[%emt 0:00:05]} 36. Qxb7 {[%emt 0:00:06]} Ne5 {[%emt 0:00:50]} 37. Qxd5 {[%emt 0:00:17]} Nxg4+ {[%emt 0:00:01]} 38. hxg4 {[%emt 0:00:02]} Rxd5 {[%emt 0:00:00]} 39. Bf3 {[%emt 0:00:04]} Ne7 {[%emt 0:00:12]} 40. Bxd5 {[%emt 0:00:04]} Nxd5 {[%emt 0:00:02]} 41. Bd2 {[%emt 0:00:01]} Kg8 {[%emt 0:00:01]} 42. Kg3 {[%emt 0:00:00]} Kf7 {[%emt 0:00:01]} 43. f4 {[%emt 0:00:01]} Ke7 {[%emt 0:00:04]} 44. Kf3 {[%emt 0:00:01]} Kd6 {[%emt 0:00:01]} 45. Ke4 {[%emt 0:00:01]} g6 {[%emt 0:00:01]} 46. f5 {[%emt 0:00:04]} Ne7 {[%emt 0:00:47]} 47. Bb4+ {[%emt 0:00:04]} Kd7 {[%emt 0:00:00]} 48. fxe6+ {[%emt 0:00:50]} Kxe6 {[%emt 0:00:01]} 49. Bd2 {[%emt 0:00:45]} Nc6 {[%emt 0:00:04]} 50. Bc3 {[%emt 0:00:13]} h6 {[%emt 0:00:01]} 51. Bd2 {[%emt 0:00:02]} g5 {[%emt 0:00:07]} 52. Kf3 {[%emt 0:00:27]} Ne5+ {[%emt 0:00:07]} 53. Kg3 {[%emt 0:00:02]} Kd5 {[%emt 0:00:31]} 54. Bb4 {[%emt 0:00:01]} Nd3 {[%emt 0:00:06]} 55. Bc3 {[%emt 0:00:11]} Ne5 {[%emt 0:00:02]} 56. Bb4 {[%emt 0:00:01]} Ke4 {[%emt 0:00:16]} 57. Bf8 {[%emt 0:00:12]} Nf7 {[%emt 0:00:04]} 58. Be7 {[%emt 0:00:04]} f5 {[%emt 0:00:05]} 59. gxf5 {[%emt 0:00:03]} Kxf5 {[%emt 0:00:01]} 60. Kf3 {[%emt 0:00:03]} h5 {[%emt 0:00:02]} 61. Bb4 {[%emt 0:00:05]} Ne5+ {[%emt 0:00:02]} 62. Ke3 {[%emt 0:00:06]} Nc4+ {[%emt 0:00:00]} 63. Kf3 {[%emt 0:00:25]} Nxb2 {[%emt 0:00:02]} 64. Ke3 {[%emt 0:00:08]} Nc4+ {[%emt 0:00:02]} 65. Kd4 {[%emt 0:00:03]} Ne5 {[%emt 0:00:04]} 66. Bd6 {[%emt 0:00:06]} Ng6 {[%emt 0:00:04]} 67. Bc7 {[%emt 0:00:05]} Kg4 {[%emt 0:00:02]} 68. Ke4 {[%emt 0:00:05]} Nh4 {[%emt 0:00:06]} 69. g3 {[%emt 0:00:06]} Nf5 0-1

[Event "Hungarian Rapid-ch 2022"]
[Site "Ajka"]
[Date "2022.07.15"]
[Round "4.22"]
[White "Slezak, Robert"]
[Black "Egresi, Mate"]
[Result "0-1"]
[ECO "B07"]
[WhiteElo "2068"]
[BlackElo "2376"]
[Annotator "ChessBase"]
[PlyCount "54"]
[EventDate "2022.07.15"]
[EventType "swiss"]
[EventCountry "HUN"]
[SourceTitle "playchess.com"]
[Source "ChessBase"]
[SourceQuality "1"]
[TimeControl "900+10"]

1. e4 {[%emt 0:00:12]} d6 {[%emt 0:00:10]} 2. d4 {[%emt 0:00:02]} Nf6 {[%emt 0:00:01]} 3. Nc3 {[%emt 0:00:01]} e5 {[%emt 0:00:02]} 4. dxe5 {[%emt 0:00:16]} dxe5 {[%emt 0:00:01]} 5. Qxd8+ {[%emt 0:00:02]} Kxd8 {[%emt 0:00:01]} 6. f3 {[%emt 0:00:19]} c6 {[%emt 0:00:09]} 7. Be3 {[%emt 0:00:09]} Be6 {[%emt 0:00:18]} 8. O-O-O+ {[%emt 0:00:44]} Nbd7 {[%emt 0:00:08]} 9. g4 {[%emt 0:01:02]} h6 {[%emt 0:00:42]} 10. h4 {[%emt 0:00:18]} Kc7 {[%emt 0:00:10]} 11. a3 {[%emt 0:00:13]} b5 {[%emt 0:00:05]} 12. Rh2 {[%emt 0:00:21]} Bc5 {[%emt 0:00:20]} 13. Bxc5 {[%emt 0:00:33]} Nxc5 {[%emt 0:00:02]} 14. Rhd2 {[%emt 0:00:06]} a5 {[%emt 0:00:46]} 15. Nge2 {[%emt 0:01:51]} b4 {[%emt 0:00:08]} 16. Nb1 {[%emt 0:00:02]} Ncxe4 {[%emt 0:01:27]} 17. fxe4 {[%emt 0:00:18]} Nxe4 {[%emt 0:00:01]} 18. g5 {[%emt 0:00:45]} hxg5 {[%emt 0:02:10]} 19. hxg5 {[%emt 0:00:03]} Rh5 {[%emt 0:00:47]} 20. Rd3 {[%emt 0:01:08]} Nf2 {[%emt 0:00:05]} 21. Rg3 {[%emt 0:00:04]} Nxd1 {[%emt 0:00:03]} 22. Kxd1 {[%emt 0:00:02]} Rd8+ {[%emt 0:03:03]} 23. Kc1 {[%emt 0:01:13]} Rh1 {[%emt 0:00:09]} 24. Ng1 {[%emt 0:00:12]} f5 {[%emt 0:00:31]} 25. gxf6 {[%emt 0:00:05]} gxf6 {[%emt 0:00:06]} 26. axb4 {[%emt 0:00:19]} axb4 {[%emt 0:00:01]} 27. Be2 {[%emt 0:00:57]} Rg8 {[%emt 0:00:12]} 0-1

[Event "Hungarian Rapid-ch 2022"]
[Site "Ajka"]
[Date "2022.07.15"]
[Round "4.23"]
[White "Nemeth, Zsolt"]
[Black "Martini, Balazs"]
[Result "1/2-1/2"]
[ECO "B30"]
[WhiteElo "1980"]
[BlackElo "2348"]
[Annotator "ChessBase"]
[PlyCount "47"]
[EventDate "2022.07.15"]
[EventType "swiss"]
[EventCountry "HUN"]
[SourceTitle "playchess.com"]
[Source "ChessBase"]
[SourceQuality "1"]
[TimeControl "900+10"]

1. e4 {[%emt 0:00:13]} c5 {[%emt 0:00:14]} 2. Nf3 {[%emt 0:00:03]} Nc6 {[%emt 0:00:02]} 3. Bb5 {[%emt 0:00:04]} e6 {[%emt 0:00:04]} 4. Bxc6 {[%emt 0:00:05]} bxc6 {[%emt 0:00:03]} 5. b3 {[%emt 0:00:09]} Ne7 {[%emt 0:00:14]} 6. Bb2 {[%emt 0:00:19]} Ng6 {[%emt 0:00:16]} 7. d3 {[%emt 0:00:29]} f6 {[%emt 0:00:23]} 8. e5 {[%emt 0:00:26]} fxe5 {[%emt 0:00:43]} 9. Nxe5 {[%emt 0:00:10]} Nxe5 {[%emt 0:00:50]} 10. Bxe5 {[%emt 0:00:04]} Qg5 {[%emt 0:01:01]} 11. Bg3 {[%emt 0:00:11]} Be7 {[%emt 0:00:08]} 12. Nd2 {[%emt 0:00:23]} O-O {[%emt 0:01:10]} 13. O-O {[%emt 0:00:16]} Qf5 {[%emt 0:03:12]} 14. Qe2 {[%emt 0:01:02]} d5 {[%emt 0:02:52]} 15. Rae1 {[%emt 0:00:18]} Bd7 {[%emt 0:03:04]} 16. Nf3 {[%emt 0:00:12]} Qh5 {[%emt 0:00:14]} 17. Ne5 {[%emt 0:01:16]} Qxe2 {[%emt 0:00:02]} 18. Rxe2 {[%emt 0:00:02]} Be8 {[%emt 0:00:01]} 19. Nf3 {[%emt 0:00:39]} Bf7 {[%emt 0:00:40]} 20. Ne5 {[%emt 0:00:01]} Be8 {[%emt 0:00:02]} 21. Nf3 {[%emt 0:00:02]} Bf7 {[%emt 0:00:01]} 22. Ne5 Be8 23. Nxc6 Bxc6 24. Rxe6 1/2-1/2

[Event "Hungarian Rapid-ch 2022"]
[Site "Ajka"]
[Date "2022.07.15"]
[Round "4.24"]
[White "Fabian Nagy, Sandor"]
[Black "Kiss, Pal"]
[Result "1-0"]
[ECO "B34"]
[WhiteElo "1955"]
[BlackElo "2243"]
[Annotator "ChessBase"]
[PlyCount "108"]
[EventDate "2022.07.15"]
[EventType "swiss"]
[EventCountry "HUN"]
[SourceTitle "playchess.com"]
[Source "ChessBase"]
[SourceQuality "1"]
[TimeControl "900+10"]

1. e4 {[%emt 0:00:17]} c5 {[%emt 0:00:11]} 2. Nf3 {[%emt 0:00:06]} Nc6 {[%emt 0:00:03]} 3. d4 {[%emt 0:00:02]} cxd4 {[%emt 0:00:01]} 4. Nxd4 {[%emt 0:00:02]} Nf6 {[%emt 0:00:06]} 5. Nc3 {[%emt 0:00:14]} e5 {[%emt 0:00:08]} 6. Nb3 {[%emt 0:00:14]} Bb4 {[%emt 0:00:02]} 7. Bd3 {[%emt 0:00:20]} d5 {[%emt 0:00:04]} 8. exd5 {[%emt 0:00:40]} Nxd5 {[%emt 0:00:04]} 9. Bd2 {[%emt 0:00:30]} Bxc3 {[%emt 0:00:14]} 10. bxc3 {[%emt 0:00:07]} O-O {[%emt 0:00:03]} 11. O-O {[%emt 0:00:16]} f5 {[%emt 0:00:08]} 12. f3 {[%emt 0:00:20]} Qb6+ {[%emt 0:02:17]} 13. Kh1 {[%emt 0:00:19]} Ne3 {[%emt 0:00:18]} 14. Bxe3 {[%emt 0:00:40]} Qxe3 {[%emt 0:00:02]} 15. Re1 {[%emt 0:00:48]} Qb6 {[%emt 0:00:43]} 16. Bc4+ {[%emt 0:00:32]} Kh8 {[%emt 0:00:03]} 17. Qd6 {[%emt 0:00:27]} Rf6 {[%emt 0:01:40]} 18. Qd2 {[%emt 0:03:36]} Be6 {[%emt 0:01:49]} 19. Bxe6 {[%emt 0:00:32]} Rxe6 {[%emt 0:00:02]} 20. Rad1 {[%emt 0:00:03]} Rae8 {[%emt 0:00:33]} 21. Qd5 {[%emt 0:00:42]} Qc7 {[%emt 0:01:39]} 22. Nc5 {[%emt 0:00:42]} R6e7 {[%emt 0:00:16]} 23. Qd6 {[%emt 0:01:08]} b6 {[%emt 0:01:06]} 24. Qxc7 {[%emt 0:01:14]} Rxc7 {[%emt 0:00:03]} 25. Nd7 {[%emt 0:00:22]} h6 {[%emt 0:01:16]} 26. Rd6 {[%emt 0:00:21]} e4 {[%emt 0:01:41]} 27. f4 {[%emt 0:00:51]} Rd8 {[%emt 0:01:56]} 28. Rxc6 {[%emt 0:01:19]} Rxc6 {[%emt 0:00:05]} 29. Ne5 {[%emt 0:00:04]} Rc7 {[%emt 0:00:09]} 30. g4 {[%emt 0:00:41]} fxg4 {[%emt 0:00:54]} 31. Rxe4 {[%emt 0:00:12]} Kg8 {[%emt 0:00:14]} 32. c4 {[%emt 0:00:39]} b5 {[%emt 0:00:27]} 33. Kg2 {[%emt 0:01:01]} Re8 {[%emt 0:00:42]} 34. Kg3 {[%emt 0:00:10]} bxc4 {[%emt 0:00:10]} 35. Kxg4 {[%emt 0:00:09]} c3 {[%emt 0:00:28]} 36. Rd4 {[%emt 0:00:08]} Rce7 {[%emt 0:00:16]} 37. Kf5 {[%emt 0:00:21]} Rf8+ {[%emt 0:00:15]} 38. Kg4 {[%emt 0:00:42]} Kh7 {[%emt 0:00:12]} 39. h4 {[%emt 0:00:09]} g6 {[%emt 0:00:25]} 40. Rc4 {[%emt 0:00:03]} h5+ {[%emt 0:00:21]} 41. Kg3 {[%emt 0:00:09]} Rd8 {[%emt 0:00:23]} 42. Rxc3 {[%emt 0:00:02]} Rd2 {[%emt 0:00:01]} 43. Rc6 {[%emt 0:00:11]} Rg7 {[%emt 0:00:14]} 44. a4 {[%emt 0:00:01]} a5 {[%emt 0:00:02]} 45. c4 {[%emt 0:00:01]} Ra2 {[%emt 0:00:02]} 46. c5 {[%emt 0:00:08]} Ra3+ {[%emt 0:00:02]} 47. Kg2 {[%emt 0:00:06]} Rb7 {[%emt 0:00:13]} 48. Rxg6 {[%emt 0:00:26]} Rb2+ {[%emt 0:00:07]} 49. Kh1 {[%emt 0:00:06]} Rxa4 50. c6 {[%emt 0:00:04]} Rc2 {[%emt 0:00:30]} 51. Rg5 {[%emt 0:00:01]} Ra1+ {[%emt 0:00:08]} 52. Rg1 {[%emt 0:00:03]} Rxg1+ {[%emt 0:00:03]} 53. Kxg1 {[%emt 0:00:02]} a4 {[%emt 0:00:01]} 54. f5 {[%emt 0:00:09]} a3 {[%emt 0:00:01]} 1-0

[Event "Hungarian Rapid-ch 2022"]
[Site "Ajka"]
[Date "2022.07.15"]
[Round "4.25"]
[White "Kovacs, Klara"]
[Black "Juhasz, Zoltan"]
[Result "1-0"]
[ECO "A46"]
[WhiteElo "2098"]
[BlackElo "1985"]
[Annotator "ChessBase"]
[PlyCount "27"]
[EventDate "2022.07.15"]
[EventType "swiss"]
[EventCountry "HUN"]
[SourceTitle "playchess.com"]
[Source "ChessBase"]
[SourceQuality "1"]
[TimeControl "900+10"]

1. d4 {[%emt 0:00:13]} Nf6 {[%emt 0:00:14]} 2. Nf3 {[%emt 0:00:05]} d6 {[%emt 0:00:08]} 3. Nc3 {[%emt 0:00:06]} Nbd7 {[%emt 0:00:06]} 4. e4 {[%emt 0:00:04]} e5 {[%emt 0:00:35]} 5. Bc4 {[%emt 0:00:21]} h6 {[%emt 0:04:05]} 6. dxe5 {[%emt 0:01:02]} dxe5 {[%emt 0:00:05]} 7. Bxf7+ {[%emt 0:00:11]} Kxf7 {[%emt 0:00:05]} 8. Nxe5+ {[%emt 0:00:02]} Ke8 {[%emt 0:01:21]} 9. Ng6 {[%emt 0:00:13]} Rg8 {[%emt 0:01:11]} 10. e5 {[%emt 0:00:11]} Nh7 {[%emt 0:01:19]} 11. Qh5 {[%emt 0:03:52]} Bb4 {[%emt 0:00:53]} 12. Bxh6 {[%emt 0:01:11]} Bxc3+ {[%emt 0:00:43]} 13. bxc3 {[%emt 0:00:02]} gxh6 {[%emt 0:00:26]} 14. Nh8+ {[%emt 0:00:14]} 1-0

[Event "Hungarian Rapid-ch 2022"]
[Site "Ajka"]
[Date "2022.07.15"]
[Round "4.26"]
[White "Benedek, Istvan"]
[Black "Udvardi, Zalan"]
[Result "0-1"]
[ECO "B21"]
[WhiteElo "2059"]
[BlackElo "2310"]
[Annotator "ChessBase"]
[PlyCount "53"]
[EventDate "2022.07.15"]
[EventType "swiss"]
[EventCountry "HUN"]
[SourceTitle "playchess.com"]
[Source "ChessBase"]
[SourceQuality "1"]
[TimeControl "900+10"]

1. e4 {[%emt 0:00:13]} c5 {[%emt 0:00:02]} 2. d4 {[%emt 0:00:10]} cxd4 {[%emt 0:00:04]} 3. c3 {[%emt 0:00:01]} Nf6 {[%emt 0:00:02]} 4. e5 {[%emt 0:00:03]} Nd5 {[%emt 0:00:01]} 5. Nf3 {[%emt 0:00:16]} d6 {[%emt 0:00:27]} 6. cxd4 {[%emt 0:00:21]} Nc6 {[%emt 0:00:42]} 7. Bc4 {[%emt 0:00:12]} dxe5 {[%emt 0:00:03]} 8. dxe5 {[%emt 0:00:07]} Be6 {[%emt 0:00:02]} 9. Qe2 {[%emt 0:01:11]} g6 {[%emt 0:00:49]} 10. O-O {[%emt 0:00:30]} Bg7 {[%emt 0:00:38]} 11. Ng5 {[%emt 0:02:05]} Nxe5 {[%emt 0:01:36]} 12. Nxe6 {[%emt 0:00:19]} fxe6 {[%emt 0:00:01]} 13. Bb5+ {[%emt 0:00:12]} Kf7 {[%emt 0:00:08]} 14. f4 {[%emt 0:01:41]} Qb6+ {[%emt 0:00:02]} 15. Kh1 {[%emt 0:00:14]} Nc6 {[%emt 0:00:09]} 16. Bxc6 {[%emt 0:00:52]} Qxc6 {[%emt 0:00:01]} 17. Nd2 {[%emt 0:00:17]} Rhf8 {[%emt 0:00:45]} 18. Nf3 {[%emt 0:00:27]} Kg8 {[%emt 0:00:02]} 19. Ng5 {[%emt 0:01:18]} e5 {[%emt 0:00:11]} 20. fxe5 {[%emt 0:00:42]} Rxf1+ {[%emt 0:00:02]} 21. Qxf1 {[%emt 0:00:02]} Rf8 {[%emt 0:00:01]} 22. Nf3 {[%emt 0:00:58]} Bxe5 {[%emt 0:00:49]} 23. Bh6 {[%emt 0:00:06]} Rf5 {[%emt 0:00:52]} 24. Nxe5 {[%emt 0:03:35]} Rxf1+ {[%emt 0:00:02]} 25. Rxf1 {[%emt 0:00:01]} Qe8 {[%emt 0:00:03]} 26. Nd7 {[%emt 0:00:36]} Nf6 {[%emt 0:00:01]} 27. Rxf6 {[%emt 0:00:06]} 0-1